[Event "Late-Titled-Tuesday-Blitz-May-14-2024"]
[Site "Chess.com"]
[Date "2024.05.14"]
[Round "7"]
[White "Aygehovit1992"]
[Black "GelmanAlexander"]
[Result "0-1"]
[WhiteElo "2830"]
[BlackElo "2682"]
[TimeControl "180+1"]
[EndTime "15:17:58 PDT"]
[Termination "GelmanAlexander won by resignation"]

1. e4 {[%clk 0:03:00.9]} 1... c5 {[%clk 0:02:57.9]} 2. Nf3 {[%clk 0:03:00.9]}
2... e6 {[%clk 0:02:58]} 3. b3 {[%clk 0:03:00.5]} 3... a6 {[%clk 0:02:58.1]} 4.
Bb2 {[%clk 0:02:58.5]} 4... d6 {[%clk 0:02:58.7]} 5. c4 {[%clk 0:02:58.4]} 5...
b6 {[%clk 0:02:57.7]} 6. d4 {[%clk 0:02:58]} 6... cxd4 {[%clk 0:02:57.8]} 7.
Nxd4 {[%clk 0:02:57.6]} 7... Bb7 {[%clk 0:02:58.3]} 8. Bd3 {[%clk 0:02:57.6]}
8... Nf6 {[%clk 0:02:57.3]} 9. Nd2 {[%clk 0:02:48.7]} 9... Nbd7 {[%clk
0:02:57.8]} 10. O-O {[%clk 0:02:48.7]} 10... g6 {[%clk 0:02:51.6]} 11. f4 {[%clk
0:02:46.8]} 11... Bg7 {[%clk 0:02:52]} 12. Qe2 {[%clk 0:02:44.5]} 12... O-O
{[%clk 0:02:51.8]} 13. Rad1 {[%clk 0:02:42.7]} 13... Nh5 {[%clk 0:02:46]} 14. f5
{[%clk 0:02:27.5]} 14... Qe7 {[%clk 0:02:35.8]} 15. Rde1 {[%clk 0:02:10.7]}
15... Rae8 {[%clk 0:02:31.4]} 16. Bb1 {[%clk 0:02:09.3]} 16... Qd8 {[%clk
0:02:25.4]} 17. fxe6 {[%clk 0:02:05.5]} 17... fxe6 {[%clk 0:02:24.7]} 18. Rxf8+
{[%clk 0:02:05.2]} 18... Nxf8 {[%clk 0:02:24.6]} 19. Qg4 {[%clk 0:01:57.3]}
19... b5 {[%clk 0:02:18.3]} 20. Kh1 {[%clk 0:01:54.1]} 20... bxc4 {[%clk
0:02:17.4]} 21. Nxc4 {[%clk 0:01:54.6]} 21... d5 {[%clk 0:02:05.1]} 22. exd5
{[%clk 0:01:50.3]} 22... exd5 {[%clk 0:02:00.3]} 23. Ne3 {[%clk 0:01:36.7]}
23... Qa5 {[%clk 0:01:26.7]} 24. Qd1 {[%clk 0:01:36]} 24... Qc7 {[%clk
0:01:07.8]} 25. Nec2 {[%clk 0:01:24]} 25... Rxe1+ {[%clk 0:01:04.1]} 26. Nxe1
{[%clk 0:01:24.9]} 26... Nf4 {[%clk 0:00:56.7]} 27. Nef3 {[%clk 0:01:24.9]}
27... N8e6 {[%clk 0:00:53.8]} 28. Nxe6 {[%clk 0:01:19.6]} 28... Nxe6 {[%clk
0:00:54.7]} 29. Bxg7 {[%clk 0:01:18.1]} 29... Qxg7 {[%clk 0:00:55.3]} 30. Qe2
{[%clk 0:01:11.7]} 30... Qf6 {[%clk 0:00:54.2]} 31. Qe5 {[%clk 0:00:59.4]} 31...
Qxe5 {[%clk 0:00:41.1]} 32. Nxe5 {[%clk 0:01:00.3]} 32... d4 {[%clk 0:00:38.4]}
33. Kg1 {[%clk 0:00:59.6]} 33... Kg7 {[%clk 0:00:38]} 34. Kf2 {[%clk 0:00:58.8]}
34... Kf6 {[%clk 0:00:38.5]} 35. Nd7+ {[%clk 0:00:55.7]} 35... Ke7 {[%clk
0:00:38]} 36. Nb6 {[%clk 0:00:54]} 36... Kd6 {[%clk 0:00:33.7]} 37. a3 {[%clk
0:00:42.2]} 37... Nc5 {[%clk 0:00:22.5]} 38. b4 {[%clk 0:00:39.5]} 38... Ne4+
{[%clk 0:00:20.2]} 39. Bxe4 {[%clk 0:00:35.9]} 39... Bxe4 {[%clk 0:00:21.1]} 40.
g3 {[%clk 0:00:34.5]} 40... Kc6 {[%clk 0:00:18.5]} 41. Nc4 {[%clk 0:00:33.3]}
41... Bd5 {[%clk 0:00:16.1]} 42. Nb2 {[%clk 0:00:27.5]} 42... Kb5 {[%clk
0:00:14.4]} 43. Ke2 {[%clk 0:00:26.8]} 43... Be4 {[%clk 0:00:14.9]} 44. Kd2
{[%clk 0:00:26.1]} 44... g5 {[%clk 0:00:14.5]} 45. Nd3 {[%clk 0:00:20.7]} 45...
Bxd3 {[%clk 0:00:05.8]} 46. Kxd3 {[%clk 0:00:21.6]} 46... Ka4 {[%clk 0:00:06.3]}
47. Kxd4 {[%clk 0:00:22]} 47... Kxa3 {[%clk 0:00:06.9]} 48. Kc5 {[%clk
0:00:20.7]} 48... Kb3 {[%clk 0:00:07.5]} 49. h4 {[%clk 0:00:09.1]} 49... g4
{[%clk 0:00:03.5]} 50. h5 {[%clk 0:00:09.3]} 50... h6 {[%clk 0:00:03.7]} 51. b5
{[%clk 0:00:04.3]} 51... axb5 {[%clk 0:00:04]} 52. Kxb5 {[%clk 0:00:05.1]} 52...
Kc3 {[%clk 0:00:04.9]} 53. Kc5 {[%clk 0:00:05.8]} 53... Kd3 {[%clk 0:00:05.8]}
54. Kd5 {[%clk 0:00:06.4]} 54... Ke3 {[%clk 0:00:06.7]} 55. Ke5 {[%clk
0:00:07.3]} 55... Kf3 {[%clk 0:00:07.6]} 56. Kf5 {[%clk 0:00:08]} 56... Kxg3
{[%clk 0:00:08.5]} 57. Kg6 {[%clk 0:00:08.9]} 57... Kf4 {[%clk 0:00:06.7]} 58.
Kxh6 {[%clk 0:00:09.8]} 58... g3 {[%clk 0:00:07.5]} 59. Kh7 {[%clk 0:00:07.1]}
59... g2 {[%clk 0:00:08.4]} 60. h6 {[%clk 0:00:07.6]} 60... g1=Q {[%clk
0:00:09.3]} 61. Kh8 {[%clk 0:00:08.2]} 61... Qa1+ {[%clk 0:00:04.2]} 62. Kg8
{[%clk 0:00:07.3]} 62... Qa8+ {[%clk 0:00:04.5]} 63. Kg7 {[%clk 0:00:07.4]}
63... Qb7+ {[%clk 0:00:05.1]} 64. Kg8 {[%clk 0:00:07.9]} 64... Qc8+ {[%clk
0:00:05.4]} 65. Kg7 {[%clk 0:00:08.2]} 65... Qd7+ {[%clk 0:00:05.9]} 66. Kg8
{[%clk 0:00:08.6]} 66... Kg5 {[%clk 0:00:05.3]} 67. h7 {[%clk 0:00:08.9]} 67...
Kg6 {[%clk 0:00:05.9]} 68. h8=N+ {[%clk 0:00:08.4]} 68... Kf6 {[%clk 0:00:05.7]}
69. Kf8 {[%clk 0:00:08.1]} 69... Qg7+ {[%clk 0:00:05.4]} 0-1

[Event "Late-Titled-Tuesday-Blitz-May-14-2024"]
[Site "Chess.com"]
[Date "2024.05.14"]
[Round "7"]
[White "HajiyevKanan"]
[Black "remyrushbrooke"]
[Result "1/2-1/2"]
[WhiteElo "2431"]
[BlackElo "2335"]
[TimeControl "180+1"]
[EndTime "15:18:24 PDT"]
[Termination "Game drawn by repetition"]

1. Nf3 {[%clk 0:02:57.5]} 1... Nf6 {[%clk 0:02:59.9]} 2. d4 {[%clk 0:02:57]}
2... g6 {[%clk 0:02:53.8]} 3. c4 {[%clk 0:02:57.5]} 3... c5 {[%clk 0:02:53.2]}
4. g3 {[%clk 0:02:58.4]} 4... Bg7 {[%clk 0:02:51.1]} 5. Bg2 {[%clk 0:02:57.6]}
5... O-O {[%clk 0:02:50.5]} 6. O-O {[%clk 0:02:57.9]} 6... cxd4 {[%clk
0:02:46.8]} 7. Nxd4 {[%clk 0:02:58.8]} 7... Nc6 {[%clk 0:02:46.5]} 8. Nc2 {[%clk
0:02:59.5]} 8... d6 {[%clk 0:02:39.5]} 9. Nc3 {[%clk 0:02:59.6]} 9... a6 {[%clk
0:02:35.8]} 10. Rb1 {[%clk 0:02:59.4]} 10... Qc7 {[%clk 0:02:34]} 11. b3 {[%clk
0:02:59.7]} 11... Bd7 {[%clk 0:02:22.8]} 12. Bb2 {[%clk 0:02:59.2]} 12... Rad8
{[%clk 0:02:21]} 13. Ne3 {[%clk 0:02:59.1]} 13... e6 {[%clk 0:02:15.9]} 14. Ba3
{[%clk 0:02:57.2]} 14... Bc8 {[%clk 0:02:14.8]} 15. Qd2 {[%clk 0:02:57.9]} 15...
Rfe8 {[%clk 0:01:53]} 16. Rfd1 {[%clk 0:02:57]} 16... Bf8 {[%clk 0:01:50.7]} 17.
Bb2 {[%clk 0:02:56.4]} 17... Bg7 {[%clk 0:01:49.4]} 18. Rbc1 {[%clk 0:02:55.6]}
18... Qb8 {[%clk 0:01:45.5]} 19. Bf3 {[%clk 0:02:47.9]} 19... Ne5 {[%clk
0:01:42.1]} 20. Bg2 {[%clk 0:02:47.7]} 20... Neg4 {[%clk 0:01:33.2]} 21. Nxg4
{[%clk 0:02:48]} 21... Nxg4 {[%clk 0:01:32.3]} 22. Ne4 {[%clk 0:02:48.6]} 22...
d5 {[%clk 0:01:11.8]} 23. Bxg7 {[%clk 0:02:35.1]} 23... dxe4 {[%clk 0:01:05.3]}
24. Qc3 {[%clk 0:02:30.7]} 24... Rxd1+ {[%clk 0:01:03]} 25. Rxd1 {[%clk
0:02:30.9]} 25... e5 {[%clk 0:01:03.2]} 26. h3 {[%clk 0:02:20.8]} 26... Kxg7
{[%clk 0:00:52.4]} 27. hxg4 {[%clk 0:02:19.6]} 27... Bxg4 {[%clk 0:00:52.6]} 28.
Bxe4 {[%clk 0:02:07.8]} 28... Bxe2 {[%clk 0:00:50.1]} 29. Rd7 {[%clk 0:02:07.9]}
29... Qc8 {[%clk 0:00:20.2]} 30. Qd2 {[%clk 0:01:59.3]} 30... Bg4 {[%clk
0:00:18.5]} 31. Rxb7 {[%clk 0:01:59.5]} 31... Rd8 {[%clk 0:00:18.3]} 32. Qc3
{[%clk 0:01:30.8]} 32... Rd1+ {[%clk 0:00:11.1]} 33. Kh2 {[%clk 0:01:30.5]}
33... Qc5 {[%clk 0:00:10.2]} 34. Qe3 {[%clk 0:01:24.4]} 34... Qxe3 {[%clk
0:00:08.7]} 35. fxe3 {[%clk 0:01:25.3]} 35... Rd2+ {[%clk 0:00:08.8]} 36. Kg1
{[%clk 0:01:24.4]} 36... Kf6 {[%clk 0:00:04.8]} 37. Rb6+ {[%clk 0:01:19.4]}
37... Kg5 {[%clk 0:00:05.5]} 38. Rxa6 {[%clk 0:01:20.3]} 38... f5 {[%clk
0:00:05.5]} 39. Bg2 {[%clk 0:01:18.9]} 39... f4 {[%clk 0:00:05.1]} 40. exf4+
{[%clk 0:01:19]} 40... exf4 {[%clk 0:00:05]} 41. Ra5+ {[%clk 0:01:19.3]} 41...
Bf5 {[%clk 0:00:05.2]} 42. gxf4+ {[%clk 0:01:16.6]} 42... Kxf4 {[%clk
0:00:05.4]} 43. a4 {[%clk 0:01:00.4]} 43... Kg3 {[%clk 0:00:05.1]} 44. Bf1
{[%clk 0:01:01.1]} 44... Rd1 {[%clk 0:00:04.6]} 45. Rd5 {[%clk 0:00:52.5]} 45...
Rb1 {[%clk 0:00:04.9]} 46. a5 {[%clk 0:00:37.9]} 46... h5 {[%clk 0:00:05.5]} 47.
a6 {[%clk 0:00:38.1]} 47... h4 {[%clk 0:00:05.7]} 48. a7 {[%clk 0:00:37.9]}
48... h3 {[%clk 0:00:05.9]} 49. Rd2 {[%clk 0:00:31.3]} 49... Be4 {[%clk
0:00:06.1]} 50. Ra2 {[%clk 0:00:28.1]} 50... h2+ {[%clk 0:00:04.5]} 51. Rxh2
{[%clk 0:00:27.5]} 51... Rxf1+ {[%clk 0:00:04.9]} 52. Kxf1 {[%clk 0:00:27.3]}
52... Kxh2 {[%clk 0:00:05.6]} 53. b4 {[%clk 0:00:24.2]} 53... g5 {[%clk
0:00:06.2]} 54. b5 {[%clk 0:00:24.4]} 54... g4 {[%clk 0:00:06.8]} 55. c5 {[%clk
0:00:25.1]} 55... g3 {[%clk 0:00:06.9]} 56. c6 {[%clk 0:00:25.8]} 56... g2+
{[%clk 0:00:07.5]} 57. Ke2 {[%clk 0:00:25.3]} 57... g1=Q {[%clk 0:00:06.1]} 58.
a8=Q {[%clk 0:00:25.8]} 58... Qg2+ {[%clk 0:00:06.4]} 59. Ke3 {[%clk 0:00:25.9]}
59... Qf3+ {[%clk 0:00:06.6]} 60. Kd4 {[%clk 0:00:26.6]} 60... Qd3+ {[%clk
0:00:06.8]} 61. Kc5 {[%clk 0:00:27.4]} 61... Qd5+ {[%clk 0:00:06.6]} 62. Kb6
{[%clk 0:00:27.9]} 62... Qd4+ {[%clk 0:00:06.9]} 63. Kb7 {[%clk 0:00:27]} 63...
Qg7+ {[%clk 0:00:06.5]} 64. Ka6 {[%clk 0:00:25.1]} 64... Qa1+ {[%clk 0:00:06.3]}
65. Kb7 {[%clk 0:00:25.7]} 65... Qg7+ {[%clk 0:00:06]} 66. Kb8 {[%clk 0:00:23]}
66... Qf8+ {[%clk 0:00:05.8]} 67. Ka7 {[%clk 0:00:19.1]} 67... Qa3+ {[%clk
0:00:06]} 68. Kb6 {[%clk 0:00:19.7]} 68... Qe3+ {[%clk 0:00:05.3]} 69. Kc7
{[%clk 0:00:19.5]} 69... Qf4+ {[%clk 0:00:05.1]} 70. Kd7 {[%clk 0:00:15.9]}
70... Qf7+ {[%clk 0:00:04.9]} 71. Kd6 {[%clk 0:00:13.9]} 71... Qf6+ {[%clk
0:00:04.6]} 72. Kc5 {[%clk 0:00:13.2]} 72... Qe5+ {[%clk 0:00:04]} 73. Kb6
{[%clk 0:00:09.3]} 73... Qd4+ {[%clk 0:00:03.7]} 74. Ka6 {[%clk 0:00:06.6]}
74... Qa4+ {[%clk 0:00:03.6]} 75. Kb7 {[%clk 0:00:07.4]} 75... Qxb5+ {[%clk
0:00:03.4]} 76. Kc7 {[%clk 0:00:08.1]} 76... Qe5+ {[%clk 0:00:02.8]} 77. Kb6
{[%clk 0:00:08]} 77... Qd4+ {[%clk 0:00:03.3]} 78. Kc7 {[%clk 0:00:08.3]} 78...
Qe5+ {[%clk 0:00:03.7]} 79. Kb6 {[%clk 0:00:08.8]} 79... Qb2+ {[%clk 0:00:03.9]}
80. Kc7 {[%clk 0:00:09]} 80... Qg7+ {[%clk 0:00:04.7]} 81. Kb6 {[%clk
0:00:09.3]} 81... Qb2+ {[%clk 0:00:05.1]} 82. Kc7 {[%clk 0:00:09.8]} 82... Qe5+
{[%clk 0:00:05.4]} 1/2-1/2

[Event "Late-Titled-Tuesday-Blitz-May-14-2024"]
[Site "Chess.com"]
[Date "2024.05.14"]
[Round "7"]
[White "DIMONBANAN"]
[Black "Felix-Rose"]
[Result "0-1"]
[WhiteElo "2608"]
[BlackElo "2328"]
[TimeControl "180+1"]
[EndTime "15:18:27 PDT"]
[Termination "Felix-Rose won by checkmate"]

1. e4 {[%clk 0:03:00.9]} 1... e5 {[%clk 0:02:59.2]} 2. Nf3 {[%clk 0:03:00.9]}
2... Nc6 {[%clk 0:02:58.8]} 3. d4 {[%clk 0:03:01.4]} 3... exd4 {[%clk
0:02:58.8]} 4. Nxd4 {[%clk 0:03:02.3]} 4... Nf6 {[%clk 0:02:59.3]} 5. Nc3 {[%clk
0:03:02.3]} 5... Bb4 {[%clk 0:02:59.4]} 6. Nxc6 {[%clk 0:03:02.7]} 6... bxc6
{[%clk 0:02:58.1]} 7. Bd3 {[%clk 0:03:03.3]} 7... d5 {[%clk 0:02:57.8]} 8. exd5
{[%clk 0:03:04.2]} 8... O-O {[%clk 0:02:57.9]} 9. O-O {[%clk 0:03:04.8]} 9...
cxd5 {[%clk 0:02:58.4]} 10. Bg5 {[%clk 0:03:04.7]} 10... c6 {[%clk 0:02:58.8]}
11. Qf3 {[%clk 0:03:03.4]} 11... Bd6 {[%clk 0:02:58.9]} 12. Bxf6 {[%clk
0:03:01.2]} 12... Qxf6 {[%clk 0:02:58.6]} 13. Qxf6 {[%clk 0:03:01.7]} 13... gxf6
{[%clk 0:02:59.5]} 14. Ne2 {[%clk 0:03:02]} 14... Rb8 {[%clk 0:02:54.2]} 15. b3
{[%clk 0:03:00.7]} 15... a5 {[%clk 0:02:53.6]} 16. Rad1 {[%clk 0:02:56.3]} 16...
a4 {[%clk 0:02:53.2]} 17. bxa4 {[%clk 0:02:40.5]} 17... Ra8 {[%clk 0:02:51.8]}
18. c4 {[%clk 0:02:35.5]} 18... Rxa4 {[%clk 0:02:46.7]} 19. cxd5 {[%clk
0:02:34.3]} 19... cxd5 {[%clk 0:02:46.2]} 20. Nc3 {[%clk 0:02:34.6]} 20... Ra5
{[%clk 0:02:40.4]} 21. Nxd5 {[%clk 0:02:34.8]} 21... Rxa2 {[%clk 0:02:32.6]} 22.
Nxf6+ {[%clk 0:02:31.4]} 22... Kg7 {[%clk 0:02:33.1]} 23. Nxh7 {[%clk
0:02:25.3]} 23... Rh8 {[%clk 0:02:32.5]} 24. h3 {[%clk 0:02:17.6]} 24... Bf4
{[%clk 0:01:59.3]} 25. Bb1 {[%clk 0:01:47.5]} 25... Ra4 {[%clk 0:01:47]} 26. g3
{[%clk 0:01:02]} 26... Bh6 {[%clk 0:01:45.7]} 27. f4 {[%clk 0:01:02.2]} 27...
Bxh3 {[%clk 0:01:43.6]} 28. Rf2 {[%clk 0:01:01.9]} 28... Bg4 {[%clk 0:01:39.5]}
29. Rc1 {[%clk 0:00:29]} 29... Ra3 {[%clk 0:01:26.9]} 30. Kg2 {[%clk 0:00:25.7]}
30... Rxh7 {[%clk 0:01:24.3]} 31. Bxh7 {[%clk 0:00:24.7]} 31... Kxh7 {[%clk
0:01:24.5]} 32. Rc6 {[%clk 0:00:16.1]} 32... Be6 {[%clk 0:01:20.3]} 33. Rc5
{[%clk 0:00:14.6]} 33... Bg7 {[%clk 0:01:15.9]} 34. Rh5+ {[%clk 0:00:12.6]}
34... Kg6 {[%clk 0:01:10.5]} 35. Rg5+ {[%clk 0:00:10.1]} 35... Kf6 {[%clk
0:01:11.1]} 36. Rb5 {[%clk 0:00:06.5]} 36... Bd7 {[%clk 0:01:07]} 37. Rb6+
{[%clk 0:00:06.4]} 37... Ke7 {[%clk 0:01:06.9]} 38. Re2+ {[%clk 0:00:05.7]}
38... Kd8 {[%clk 0:01:05.6]} 39. Rb8+ {[%clk 0:00:05.3]} 39... Kc7 {[%clk
0:01:05.9]} 40. Rb4 {[%clk 0:00:05]} 40... Bc6+ {[%clk 0:01:04.9]} 41. Kh3
{[%clk 0:00:05.6]} 41... Ra1 {[%clk 0:01:01.6]} 42. Kg4 {[%clk 0:00:04.7]} 42...
Ra3 {[%clk 0:00:58.4]} 43. f5 {[%clk 0:00:04.3]} 43... Bf3+ {[%clk 0:00:55.2]}
44. Kg5 {[%clk 0:00:03.3]} 44... Bxe2 {[%clk 0:00:55.7]} 45. f6 {[%clk
0:00:03.8]} 45... Rxg3+ {[%clk 0:00:52.4]} 46. Kh4 {[%clk 0:00:03]} 46... Rg6
{[%clk 0:00:47.2]} 47. fxg7 {[%clk 0:00:03.5]} 47... Rxg7 {[%clk 0:00:47.7]} 48.
Rf4 {[%clk 0:00:04.3]} 48... Bc4 {[%clk 0:00:47.2]} 49. Kh5 {[%clk 0:00:04.2]}
49... Be6 {[%clk 0:00:47.8]} 50. Kh6 {[%clk 0:00:04.8]} 50... Rg6+ {[%clk
0:00:48.2]} 51. Kh5 {[%clk 0:00:05.2]} 51... Kd6 {[%clk 0:00:48.3]} 52. Rf2
{[%clk 0:00:04.8]} 52... Ke7 {[%clk 0:00:47.1]} 53. Rf4 {[%clk 0:00:04.8]} 53...
Rf6 {[%clk 0:00:47.4]} 54. Re4 {[%clk 0:00:04.2]} 54... Rf1 {[%clk 0:00:47.2]}
55. Kg5 {[%clk 0:00:04.6]} 55... f6+ {[%clk 0:00:46]} 56. Kh4 {[%clk 0:00:04.2]}
56... f5 {[%clk 0:00:46]} 57. Re2 {[%clk 0:00:03.2]} 57... Kf6 {[%clk
0:00:45.6]} 58. Rb2 {[%clk 0:00:02.7]} 58... Rh1+ {[%clk 0:00:45.7]} 59. Kg3
{[%clk 0:00:03.2]} 59... Rg1+ {[%clk 0:00:44.8]} 60. Kf4 {[%clk 0:00:03.8]}
60... Rg4+ {[%clk 0:00:45.2]} 61. Kf3 {[%clk 0:00:04.1]} 61... Kg5 {[%clk
0:00:45.4]} 62. Rb5 {[%clk 0:00:03.7]} 62... Rd4 {[%clk 0:00:43.5]} 63. Re5
{[%clk 0:00:03.7]} 63... Bd5+ {[%clk 0:00:41.4]} 64. Kf2 {[%clk 0:00:04.3]}
64... Be4 {[%clk 0:00:40.7]} 65. Ra5 {[%clk 0:00:03.4]} 65... Kf4 {[%clk
0:00:40.5]} 66. Ra2 {[%clk 0:00:04]} 66... Rc4 {[%clk 0:00:39.1]} 67. Ra3 {[%clk
0:00:04.4]} 67... Rc2+ {[%clk 0:00:38.4]} 68. Ke1 {[%clk 0:00:05.1]} 68... Bf3
{[%clk 0:00:35.7]} 69. Rb3 {[%clk 0:00:04.6]} 69... Kg3 {[%clk 0:00:34.9]} 70.
Rb8 {[%clk 0:00:04.7]} 70... Re2+ {[%clk 0:00:31.8]} 71. Kf1 {[%clk 0:00:04.2]}
71... Rd2 {[%clk 0:00:31.7]} 72. Rg8+ {[%clk 0:00:04.4]} 72... Kf4 {[%clk
0:00:32]} 73. Ke1 {[%clk 0:00:04.2]} 73... Re2+ {[%clk 0:00:30]} 74. Kf1 {[%clk
0:00:04.3]} 74... Rh2 {[%clk 0:00:28.5]} 75. Rg7 {[%clk 0:00:03.6]} 75... Rh1+
{[%clk 0:00:24.7]} 76. Kf2 {[%clk 0:00:03.6]} 76... Rh4 {[%clk 0:00:24.9]} 77.
Kf1 {[%clk 0:00:04.3]} 77... Be4 {[%clk 0:00:23.9]} 78. Kf2 {[%clk 0:00:04]}
78... Rh2+ {[%clk 0:00:24]} 79. Kg1 {[%clk 0:00:03.7]} 79... Ra2 {[%clk
0:00:24.2]} 80. Rh7 {[%clk 0:00:03.9]} 80... Bf3 {[%clk 0:00:21.9]} 81. Kf1
{[%clk 0:00:03.6]} 81... Bg4 {[%clk 0:00:20.7]} 82. Rb7 {[%clk 0:00:03.2]} 82...
Kg3 {[%clk 0:00:20.2]} 83. Ke1 {[%clk 0:00:02.8]} 83... f4 {[%clk 0:00:19.7]}
84. Rb3+ {[%clk 0:00:00.5]} 84... f3 {[%clk 0:00:19.7]} 85. Rb4 {[%clk
0:00:01.1]} 85... Re2+ {[%clk 0:00:19.6]} 86. Kf1 {[%clk 0:00:02]} 86... Re4
{[%clk 0:00:19.7]} 87. Rxe4 {[%clk 0:00:02]} 87... Bh3+ {[%clk 0:00:19.6]} 88.
Kg1 {[%clk 0:00:01.9]} 88... f2+ {[%clk 0:00:19.9]} 89. Kh1 {[%clk 0:00:02.3]}
89... f1=Q# {[%clk 0:00:20.6]} 0-1

[Event "Late-Titled-Tuesday-Blitz-May-14-2024"]
[Site "Chess.com"]
[Date "2024.05.14"]
[Round "7"]
[White "manitodeplomo"]
[Black "Viktoker"]
[Result "0-1"]
[WhiteElo "2553"]
[BlackElo "2413"]
[TimeControl "180+1"]
[EndTime "15:18:28 PDT"]
[Termination "Viktoker won on time"]

1. d4 {[%clk 0:03:00.9]} 1... f5 {[%clk 0:02:59.5]} 2. g3 {[%clk 0:02:59.6]}
2... Nf6 {[%clk 0:02:59.7]} 3. Bg2 {[%clk 0:03:00.2]} 3... e6 {[%clk 0:02:59.9]}
4. c4 {[%clk 0:02:59]} 4... Be7 {[%clk 0:02:58]} 5. Nc3 {[%clk 0:02:49.9]} 5...
d5 {[%clk 0:02:55.1]} 6. Nh3 {[%clk 0:02:43.8]} 6... Ne4 {[%clk 0:02:51.2]} 7.
O-O {[%clk 0:02:43.1]} 7... c6 {[%clk 0:02:50.6]} 8. f3 {[%clk 0:02:39.1]} 8...
Nd6 {[%clk 0:02:50]} 9. c5 {[%clk 0:02:36.8]} 9... Nf7 {[%clk 0:02:49.9]} 10. e4
{[%clk 0:02:37.2]} 10... dxe4 {[%clk 0:02:21]} 11. fxe4 {[%clk 0:02:38.1]} 11...
O-O {[%clk 0:02:19.1]} 12. exf5 {[%clk 0:02:33.8]} 12... exf5 {[%clk 0:02:17.1]}
13. Be3 {[%clk 0:02:32.9]} 13... Na6 {[%clk 0:02:09]} 14. Rc1 {[%clk 0:02:22.9]}
14... Bf6 {[%clk 0:02:01.1]} 15. d5 {[%clk 0:02:17.8]} 15... cxd5 {[%clk
0:01:56.8]} 16. Nxd5 {[%clk 0:01:56.5]} 16... Nc7 {[%clk 0:01:41]} 17. Nxf6+
{[%clk 0:01:45.8]} 17... Qxf6 {[%clk 0:01:41.9]} 18. Qd4 {[%clk 0:01:37.3]}
18... Qxd4 {[%clk 0:01:20.7]} 19. Bxd4 {[%clk 0:01:38.2]} 19... Ne6 {[%clk
0:01:21.1]} 20. Rfd1 {[%clk 0:01:27.3]} 20... Nxd4 {[%clk 0:01:19.3]} 21. Rxd4
{[%clk 0:01:28.2]} 21... Ne5 {[%clk 0:01:13.6]} 22. Nf4 {[%clk 0:01:12.9]} 22...
g5 {[%clk 0:00:58.1]} 23. Nd5 {[%clk 0:01:08.3]} 23... Nc6 {[%clk 0:00:56.7]}
24. Rdd1 {[%clk 0:01:02.6]} 24... f4 {[%clk 0:00:54]} 25. gxf4 {[%clk
0:00:57.5]} 25... gxf4 {[%clk 0:00:54.9]} 26. Kf2 {[%clk 0:00:43.7]} 26... Bg4
{[%clk 0:00:49.1]} 27. Bf3 {[%clk 0:00:42.4]} 27... Bxf3 {[%clk 0:00:48.9]} 28.
Kxf3 {[%clk 0:00:42.6]} 28... Ne5+ {[%clk 0:00:46.5]} 29. Ke4 {[%clk 0:00:25.9]}
29... Rae8 {[%clk 0:00:36.2]} 30. Kd4 {[%clk 0:00:25.5]} 30... Nc6+ {[%clk
0:00:34.1]} 31. Kc3 {[%clk 0:00:23.2]} 31... f3 {[%clk 0:00:31.9]} 32. b4 {[%clk
0:00:21.5]} 32... Re2 {[%clk 0:00:27.9]} 33. b5 {[%clk 0:00:20]} 33... Ne5
{[%clk 0:00:21.6]} 34. Rc2 {[%clk 0:00:19.4]} 34... Re4 {[%clk 0:00:17.5]} 35.
Rg1+ {[%clk 0:00:15.3]} 35... Kh8 {[%clk 0:00:17.3]} 36. Rf1 {[%clk 0:00:15.5]}
36... Rc4+ {[%clk 0:00:16.6]} 37. Kb3 {[%clk 0:00:15.4]} 37... Rd4 {[%clk
0:00:15.9]} 38. Nb4 {[%clk 0:00:10.5]} 38... Rdf4 {[%clk 0:00:13.5]} 39. c6
{[%clk 0:00:09.4]} 39... bxc6 {[%clk 0:00:13.4]} 40. bxc6 {[%clk 0:00:10.3]}
40... Rb8 {[%clk 0:00:13.1]} 41. a3 {[%clk 0:00:10.3]} 41... a5 {[%clk
0:00:12.6]} 42. c7 {[%clk 0:00:10.6]} 42... Rc8 {[%clk 0:00:12.3]} 43. Nd5
{[%clk 0:00:10.1]} 43... a4+ {[%clk 0:00:11.2]} 44. Ka2 {[%clk 0:00:09.4]} 44...
Rf7 {[%clk 0:00:10.9]} 45. Rb1 {[%clk 0:00:06.9]} 45... f2 {[%clk 0:00:10.5]}
46. Rf1 {[%clk 0:00:07]} 46... Nd3 {[%clk 0:00:10.7]} 47. Kb1 {[%clk 0:00:06]}
47... Rd7 {[%clk 0:00:10.3]} 48. Nb6 {[%clk 0:00:05.3]} 48... Rcxc7 {[%clk
0:00:08.7]} 49. Nxd7 {[%clk 0:00:05.5]} 49... Rxd7 {[%clk 0:00:08.9]} 50. Rfxf2
{[%clk 0:00:06.1]} 50... Nxf2 {[%clk 0:00:08.6]} 51. Rxf2 {[%clk 0:00:07]} 51...
Rd3 {[%clk 0:00:09.3]} 52. Ka2 {[%clk 0:00:07.3]} 52... Rh3 {[%clk 0:00:08.6]}
53. Rb2 {[%clk 0:00:06.9]} 53... Kg7 {[%clk 0:00:08.2]} 54. Rc2 {[%clk
0:00:05.5]} 54... Kg6 {[%clk 0:00:08.4]} 55. Rc4 {[%clk 0:00:05.6]} 55... Rxh2+
{[%clk 0:00:08.1]} 56. Kb1 {[%clk 0:00:05.9]} 56... Rh1+ {[%clk 0:00:07.6]} 57.
Kb2 {[%clk 0:00:05.9]} 57... Rh2+ {[%clk 0:00:07.7]} 58. Kb1 {[%clk 0:00:06.1]}
58... Rg2 {[%clk 0:00:06.9]} 59. Rxa4 {[%clk 0:00:05.9]} 59... h5 {[%clk
0:00:07.4]} 60. Ra8 {[%clk 0:00:04.1]} 60... Kf5 {[%clk 0:00:06.4]} 61. a4
{[%clk 0:00:03.3]} 61... h4 {[%clk 0:00:05.6]} 62. Rf8+ {[%clk 0:00:03.8]} 62...
Kg4 {[%clk 0:00:05.3]} 63. Rg8+ {[%clk 0:00:03.1]} 63... Kf3 {[%clk 0:00:05.6]}
64. Rh8 {[%clk 0:00:04]} 64... Rg4 {[%clk 0:00:05.5]} 65. a5 {[%clk 0:00:02.5]}
65... Kg3 {[%clk 0:00:04.5]} 66. Kc2 {[%clk 0:00:02.4]} 66... Ra4 {[%clk
0:00:04.4]} 67. Kb3 {[%clk 0:00:01.9]} 67... Rxa5 {[%clk 0:00:04.3]} 68. Rg8+
{[%clk 0:00:02.3]} 68... Kh2 {[%clk 0:00:04]} 69. Kc3 {[%clk 0:00:02.3]} 69...
h3 {[%clk 0:00:04.1]} 70. Kd3 {[%clk 0:00:02.8]} 70... Ra3+ {[%clk 0:00:04.2]}
71. Ke2 {[%clk 0:00:03.1]} 71... Rg3 {[%clk 0:00:02.6]} 72. Rh8 {[%clk
0:00:02.5]} 72... Kg2 {[%clk 0:00:02.9]} 73. Ke1 {[%clk 0:00:02]} 73... h2
{[%clk 0:00:03.4]} 74. Ke2 {[%clk 0:00:01.5]} 74... h1=Q {[%clk 0:00:03.8]} 75.
Rxh1 {[%clk 0:00:00.4]} 75... Kxh1 {[%clk 0:00:04.7]} 0-1